bitfinex/quotes_SOLUSD_20260115
["timestamp","ask_amount","ask_price","bid_price","bid_amount"]
[1768443915942,0.2,144.94,144.91,0.62412628]
[1768443919848,0.2,144.94,144.92,0.65412627]
[1768443920047,0.2,144.94,144.92,0.62412628]
[1768443920228,2.04854066,144.96,144.9,2.04854066]
[1768443921543,12.95402836,144.97,144.91,2.04854066]
[1768443921748,7.7007277,145.0,144.93,2.04854066]
[1768443921938,7.7007277,145.0,144.95,0.67592199]
[1768443922142,2.85256901,145.0,144.95,0.67592199]
[1768443922642,9.74914656,145.0,144.95,0.67592199]
[1768443923227,2.14754066,144.99,144.95,0.67592199]
[1768443923647,2.04854066,144.98,144.95,0.67592199]
[1768443924938,2.14754066,144.99,144.95,0.67592199]
[1768443925839,0.2,145.0,144.95,0.67592199]
[1768443926040,2.84256894,145.0,144.95,0.67592199]
[1768443927151,2.24854066,145.0,144.95,0.67592199]
[1768443927352,0.2,145.0,144.96,0.67592199]
[1768443927539,0.2,145.0,144.97,0.67592199]
[1768443929052,0.2,145.0,144.97,0.64592202]
[1768443933562,3.39273278,145.0,144.97,0.64592202]
[1768443933741,4.016167,145.0,144.97,0.64592202]
[1768443934241,3.19273278,144.99,144.96,0.67592199]
[1768443934436,3.30222093,144.99,144.96,0.67592199]
[1768443935665,3.19273278,144.99,144.96,0.67592199]
[1768443936566,4.0267611,145.0,144.96,0.67592199]
[1768443936961,0.83402832,145.0,144.96,0.67592199]
[1768443937945,4.0267611,145.0,144.96,0.67592199]
[1768443938674,3.29173278,144.99,144.94,0.67592199]
[1768443938841,7.09665889,145.0,144.94,0.67592199]
[1768443938842,3.82141081,144.98,144.94,0.67592199]
[1768443939346,3.19273278,144.98,144.94,0.67592199]
[1768443940264,0.63402832,144.99,144.94,0.67592199]
[1768443940265,3.8267611,144.99,144.94,0.67592199]
[1768443942460,3.8267611,144.97,144.93,0.67592199]
[1768443942645,0.63402832,144.97,144.93,0.67592199]
[1768443942967,3.8267611,144.97,144.93,0.67592199]
[1768443944064,0.099,144.96,144.93,0.67592199]
[1768443944256,3.29173278,144.96,144.92,0.67592199]
[1768443947164,3.8267611,144.97,144.92,0.67592199]
[1768443950173,0.63402832,144.97,144.92,3.86865477]
[1768443950357,3.8267611,144.97,144.93,0.67592199]
[1768443951460,0.63402832,144.97,144.93,0.67592199]
[1768443951662,3.8267611,144.97,144.93,0.67592199]
[1768443952654,3.29173278,144.96,144.93,0.67592199]
[1768443952971,3.29173278,144.96,144.91,0.71550404]
[1768443955960,0.62867803,144.95,144.91,0.71550404]
[1768443964984,0.62867803,144.95,144.81,11.36752385]
[1768443964985,0.65704655,144.92,144.81,11.36752385]
[1768443965166,0.65704655,144.91,144.86,3.19273278]
[1768443966684,0.65704655,144.88,144.81,16.71161241]
[1768443966882,3.84977933,144.88,144.82,3.19273278]
[1768443967084,3.84977933,144.88,144.83,0.71550404]
[1768443967989,0.65704655,144.87,144.84,0.71550404]
[1768443968490,0.65704655,144.88,144.84,0.71550404]
[1768443968784,3.84977933,144.88,144.84,0.71550404]
[1768443969785,0.65704655,144.88,144.84,0.71550404]
[1768443971092,0.65704655,144.88,144.85,0.71550404]
[1768443971470,0.65704655,144.9,144.86,0.71550404]
[1768443973678,0.65704655,144.91,144.87,0.71550404]
[1768443975199,0.65704655,144.91,144.87,3.90823682]
[1768443975399,0.65704655,144.91,144.88,0.71550404]
[1768443975575,0.65704655,144.92,144.88,0.71550404]
[1768443976699,3.84977933,144.92,144.84,0.71550404]
[1768443977004,0.65704655,144.91,144.87,0.71550404]
[1768443984118,0.67165097,144.92,144.88,0.68783741]
[1768443984683,0.67165097,144.92,144.88,3.88057019]
[1768443985810,0.57392908,144.92,144.88,3.88057019]
[1768443987211,0.57392908,144.92,144.88,0.68783741]
[1768443992484,0.57392908,144.92,144.89,0.68783741]
[1768443992814,0.67165097,144.93,144.89,0.68783741]
[1768443993625,0.67165097,144.96,144.92,0.68783741]
[1768443993790,0.67165097,144.97,144.94,0.68783741]
[1768443995111,0.67165097,144.98,144.94,0.68783741]
[1768443995296,0.67165097,144.98,144.95,2.73363832]
[1768443995497,0.67165097,144.98,144.95,0.65783744]
[1768443996615,0.67165097,144.98,144.95,2.70363835]
[1768443996996,0.67165097,144.98,144.93,2.04580091]
[1768443997400,0.67165097,144.98,144.93,2.73363832]
[1768443997605,0.67165097,144.97,144.93,0.68783741]
[1768443997812,0.67165097,144.97,144.93,2.73363832]
[1768443999020,0.67165097,144.97,144.94,0.68783741]
[1768443999222,0.67165097,144.98,144.94,2.73363832]
[1768444001113,0.67165097,144.98,144.94,0.68783741]
[1768444001914,0.67165097,144.97,144.94,0.68783741]
[1768444002101,0.67165097,144.97,144.93,0.68783741]
[1768444003097,0.67165097,144.97,144.92,2.73363832]
[1768444003619,0.67165097,144.97,144.93,0.68783741]
[1768444005425,0.67165097,144.97,144.93,2.73363832]
[1768444005615,0.67165097,144.97,144.93,0.68783741]
[1768444010221,0.67165097,144.97,144.93,2.73363832]
[1768444010526,0.67165097,144.97,144.93,0.68783741]
[1768444011522,0.67196504,144.95,144.9,0.70265044]
[1768444011724,0.70274694,144.94,144.9,0.70265044]
[1768444012121,0.67227286,144.93,144.89,0.70265044]
[1768444012434,0.7024422,144.92,144.89,0.70265044]
[1768444015730,0.7024422,144.92,144.88,0.70265044]
[1768444017526,0.7024422,144.92,144.88,2.74845135]
[1768444017727,0.7024422,144.92,144.89,0.70265044]
[1768444018432,0.71117048,144.93,144.89,0.70265044]
[1768444019832,0.71117048,144.93,144.9,0.70265044]
[1768444020730,0.71117048,144.94,144.91,0.70265044]
[1768444021028,0.71117048,144.96,144.93,0.70265044]
[1768444021325,0.71117048,144.98,144.93,2.04580091]
[1768444022842,0.71099511,144.96,144.86,12.58]
[1768444023136,0.69380716,144.95,144.91,0.70265044]
[1768444023729,0.71082323,144.94,144.91,0.70265044]
[1768444024130,0.71117048,144.95,144.91,0.70265044]
[1768444025533,0.69363355,144.94,144.9,0.70265044]
[1768444027828,0.71117048,144.95,144.9,0.70265044]
[1768444028533,0.71117048,144.95,144.91,0.70265044]
[1768444033138,0.71117048,144.95,144.9,0.70265044]
[1768444033644,0.69363355,144.94,144.9,0.70265044]
[1768444033815,0.71099511,144.93,144.9,0.70265044]
[1768444034227,0.71117048,144.94,144.9,0.70265044]
[1768444034639,0.71117048,144.95,144.91,0.70265044]
[1768444034843,0.71117048,144.95,144.92,0.70265044]
[1768444041625,0.68967828,144.96,144.92,0.70265044]
[1768444042131,0.72304639,144.99,144.94,0.65775466]
[1768444042334,0.72304639,144.99,144.95,0.65775466]
[1768444047957,0.72304639,144.99,144.95,2.70355557]
[1768444048963,0.72304639,144.99,144.96,0.65775466]
[1768444065170,0.72304639,144.99,144.95,3.85095444]
[1768444067568,0.72304639,144.99,144.96,0.65775466]
[1768444069163,0.72304639,144.99,144.95,3.19319978]
[1768444069367,0.68187639,144.98,144.94,3.85095444]
[1768444069667,0.72223118,144.94,144.86,0.65775466]
[1768444069865,3.91624617,144.89,144.86,0.65775466]
[1768444070046,0.72304639,144.89,144.86,0.65775466]
[1768444071568,3.88183482,144.91,144.86,0.65775466]
[1768444071759,0.68863504,144.91,144.88,0.65984431]
[1768444074349,10.09325673,144.93,144.89,0.65984431]
[1768444074350,0.68863504,144.92,144.89,0.65984431]
[1768444074669,0.68863504,144.93,144.89,0.65984431]
[1768444075876,0.68863504,144.93,144.89,3.85304409]
[1768444077453,0.68863504,144.93,144.89,0.65984431]
[1768444077653,0.68863504,144.93,144.89,3.85304409]
[1768444078474,0.68863504,144.93,144.9,0.65984431]
[1768444078781,0.68863504,144.94,144.91,0.65984431]
[1768444081978,0.68863504,144.94,144.91,3.85304409]
[1768444082562,0.68863504,144.94,144.91,0.65984431]
[1768444083677,0.68863504,144.94,144.9,3.85304409]
[1768444084480,0.68863504,144.93,144.9,0.65984431]
[1768444084665,0.68863504,144.92,144.88,3.85304409]
[1768444084866,0.68863504,144.92,144.89,0.65984431]
[1768444087254,10.09279757,144.94,144.89,0.65984431]
[1768444087582,0.68863504,144.94,144.9,3.85304409]
[1768444087784,0.68863504,144.94,144.9,0.65984431]
[1768444088580,0.68863504,144.93,144.9,0.65984431]
[1768444088783,0.68863504,144.93,144.89,0.65984431]
[1768444089380,3.88183482,144.93,144.89,0.65984431]
[1768444089598,0.68863504,144.91,144.87,0.65984431]
[1768444090258,0.68863504,144.91,144.86,3.85304409]
[1768444090869,0.68863504,144.91,144.87,0.65984431]
[1768444091579,0.68863504,144.91,144.87,3.19319978]
[1768444092489,0.68863504,144.9,144.86,0.65984431]
[1768444092790,0.68863504,144.9,144.86,3.85304409]
[1768444093087,0.68863504,144.9,144.85,3.85304409]
[1768444093295,0.68863504,144.9,144.86,3.19319978]
[1768444093798,0.68863504,144.89,144.85,3.85304409]
[1768444093970,0.68863504,144.89,144.85,0.65984431]
[1768444095171,0.68863504,144.88,144.84,3.19319978]
[1768444095362,0.68863504,144.88,144.84,3.85304409]
[1768444095567,0.68863504,144.88,144.85,3.85304409]
[1768444095775,0.68863504,144.88,144.85,0.65984431]
[1768444096083,0.68863504,144.88,144.85,3.85304409]
[1768444100493,0.68863504,144.88,144.85,0.65984431]
[1768444100893,0.68236991,144.87,144.84,3.19319978]
[1768444101101,0.68236991,144.87,144.83,0.67704395]
[1768444102196,0.68236991,144.87,144.84,0.67704395]
[1768444105404,0.68236991,144.87,144.83,3.19319978]
[1768444105899,0.68236991,144.87,144.82,17.36006039]
[1768444106088,0.68236991,144.87,144.83,3.8487178]
[1768444106294,0.68089038,144.86,144.82,19.89774215]
[1768444107515,0.68089038,144.85,144.82,19.89774215]
[1768444109693,0.68089038,144.85,144.82,16.70454237]
[1768444109897,0.68089038,144.85,144.82,15.97954237]
[1768444115507,0.58681043,144.86,144.83,2.70302127]
[1768444115711,0.58681043,144.87,144.83,0.65551802]
[1768444116609,0.099,144.86,144.83,0.65551802]
[1768444122510,0.57715129,144.83,144.79,0.65551802]
[1768444122722,2.62465454,144.83,144.79,0.65551802]
[1768444123605,9.52941797,144.83,144.79,0.65551802]
[1768444124324,7.48191472,144.83,144.79,0.65551802]
[1768444126423,17.25804224,144.86,144.79,0.65551802]
[1768444126424,0.58681043,144.85,144.8,0.65551802]
[1768444126630,0.58681043,144.85,144.81,0.65551802]
[1768444127521,7.49068613,144.85,144.81,0.65551802]
[1768444128613,7.49068613,144.85,144.79,0.65551802]
[1768444128614,0.099,144.84,144.79,0.65551802]
[1768444128817,2.62943557,144.83,144.79,0.65551802]
[1768444130230,0.58193232,144.83,144.79,0.65551802]
[1768444131635,0.10382932,144.82,144.79,0.65551802]
[1768444133124,7.00903214,144.82,144.79,0.65551802]
[1768444133739,0.10382932,144.82,144.79,0.65551802]
[1768444135537,0.10382932,144.82,144.78,0.1]
[1768444136433,0.04382932,144.82,144.78,2.82527254]
[1768444136937,0.04382932,144.82,144.78,0.77776929]
[1768444138534,6.90482726,144.83,144.78,0.1]
[1768444138535,0.52253232,144.79,144.78,0.1]
[1768444139835,0.42253232,144.78,144.74,0.1]
[1768444140015,2.14650325,144.76,144.74,0.1]
[1768444140340,2.04750325,144.77,144.74,0.77776929]
[1768444140532,7.32644467,144.78,144.74,0.77776929]
[1768444140735,9.37394792,144.78,144.74,0.77776929]
[1768444141239,0.10220297,144.8,144.74,0.77776929]
[1768444141435,2.14970622,144.8,144.74,0.77776929]
[1768444141760,0.10220297,144.8,144.75,0.67776929]
[1768444141941,2.14970622,144.8,144.75,0.67776929]
[1768444142539,9.055893,144.8,144.75,0.67776929]
[1768444142914,2.04750325,144.79,144.75,0.67776929]
[1768444144041,2.04750325,144.78,144.75,0.67776929]
[1768444145742,9.05598722,144.8,144.75,0.67776929]
[1768444146121,2.04750325,144.79,144.75,0.67776929]
[1768444147041,6.90561423,144.81,144.75,0.67776929]
[1768444147235,2.04750325,144.81,144.75,0.67776929]
[1768444149744,7.32786147,144.82,144.75,0.67776929]
[1768444149937,2.04750325,144.81,144.75,0.67776929]
[1768444150929,8.95314715,144.81,144.75,0.67776929]
[1768444151539,0.41929699,144.8,144.75,0.67776929]
[1768444151723,2.04750325,144.79,144.75,0.67776929]
[1768444152918,2.04750325,144.8,144.75,0.67776929]
[1768444154443,119.63714721,144.83,144.76,0.67776929]
[1768444154444,2.47003557,144.82,144.76,0.67776929]
[1768444154638,19.90747076,144.83,144.77,0.67776929]
[1768444154844,21.95497401,144.83,144.77,0.67776929]
[1768444157246,19.90747076,144.83,144.78,0.67776929]
[1768444157447,21.95497401,144.83,144.78,0.67776929]
[1768444158445,12.58,144.83,144.78,0.67776929]
[1768444158626,6.90422966,144.84,144.79,0.67776929]
[1768444158827,8.95173291,144.84,144.79,0.67776929]
[1768444161262,9.05073291,144.84,144.79,0.67776929]
[1768444162552,2.04750325,144.83,144.79,0.67776929]
[1768444163055,2.46680024,144.83,144.79,0.67776929]
[1768444165464,2.04750325,144.82,144.79,0.67776929]
[1768444165940,8.95264679,144.82,144.79,0.67776929]
[1768444167049,8.95264679,144.82,144.74,0.1]
[1768444167050,0.1053422,144.8,144.75,0.65697962]
[1768444167736,2.47003557,144.81,144.76,0.65697962]
[1768444168561,0.099,144.8,144.74,0.75697962]
[1768444168741,2.04750325,144.75,144.73,0.1]
[1768444168947,2.04750325,144.74,144.73,0.1]
[1768444171347,2.51502772,144.75,144.73,0.1]
[1768444173462,3.20414419,144.75,144.73,0.1]
[1768444174167,12.58,144.75,144.73,0.1]
[1768444175267,0.707265,144.79,144.74,0.65697962]
[1768444175454,3.90901178,144.78,144.74,0.65697962]
[1768444175845,3.67404209,144.77,144.74,0.65697962]
[1768444176145,3.67404209,144.77,144.73,0.1]
[1768444176350,3.67404209,144.77,144.73,0.75697962]
[1768444176552,0.4698979,144.77,144.73,0.75697962]
[1768444177552,13.0698979,144.77,144.73,3.96112381]
[1768444177855,13.0698979,144.77,144.73,0.75697962]
[1768444178357,13.0698979,144.77,144.73,3.96112381]
[1768444178764,13.0698979,144.77,144.74,0.65697962]
[1768444180244,13.0698979,144.77,144.74,3.86112381]
[1768444183061,13.307265,144.77,144.74,3.86112381]
[1768444184848,13.307265,144.77,144.73,0.1]
[1768444184849,0.70486759,144.75,144.73,0.1]
[1768444185047,0.707265,144.76,144.73,3.96112381]
[1768444185261,0.707265,144.77,144.74,3.86112381]
[1768444185567,13.307265,144.77,144.74,3.86112381]
[1768444185772,13.307265,144.77,144.74,0.65697962]
[1768444186176,13.307265,144.77,144.73,0.75697962]
[1768444186351,0.707265,144.77,144.74,0.65697962]
[1768444188959,22.7107938,144.79,144.74,0.65697962]
[1768444189161,0.707265,144.78,144.74,0.65697962]
[1768444192672,17.26564406,144.8,144.75,0.69264505]
[1768444192673,0.65751797,144.8,144.75,0.69264505]
[1768444192875,0.65751797,144.8,144.76,0.69264505]
[1768444195157,0.51677403,144.8,144.76,0.69264505]
[1768444197875,0.65611053,144.79,144.76,0.69264505]
[1768444198111,3.86025472,144.79,144.75,0.69264505]
[1768444199289,7.56277817,144.79,144.75,0.69264505]
[1768444200298,0.51816739,144.78,144.75,0.69264505]
[1768444200499,0.51816739,144.78,144.74,0.69264505]
[1768444206109,0.6547311,144.77,144.73,0.79264505]
[1768444207502,0.51677403,144.79,144.74,0.69264505]
[1768444207702,13.11677403,144.79,144.75,0.69264505]
[1768444207900,0.51677403,144.79,144.75,0.69264505]
[1768444210007,13.25751797,144.8,144.75,0.69264505]
[1768444211811,20.1636062,144.8,144.75,0.69264505]
[1768444212220,0.51677403,144.79,144.75,0.69264505]
[1768444215519,7.42334157,144.79,144.75,0.69264505]
[1768444216403,0.51677403,144.79,144.75,0.69264505]
[1768444217716,3.72091822,144.79,144.75,0.69264505]
[1768444218018,0.51677403,144.79,144.75,0.69264505]
[1768444219739,7.56335061,144.81,144.75,0.69264505]
[1768444219899,0.65751797,144.82,144.76,0.69264505]
[1768444220220,0.65751797,144.82,144.78,0.69264505]
[1768444223903,0.65751797,144.82,144.77,3.20414419]
[1768444223904,0.70068507,144.81,144.77,0.66543008]
[1768444224103,0.70068507,144.81,144.75,12.58]
[1768444224104,3.90256279,144.79,144.75,0.66543008]
[1768444224316,3.20414419,144.78,144.75,0.66543008]
[1768444224927,3.90256279,144.79,144.75,0.66543008]
[1768444225128,3.20414419,144.78,144.75,0.66543008]
[1768444225310,3.68262574,144.76,144.73,0.76543008]
[1768444225629,0.47848155,144.76,144.73,0.76543008]
[1768444226344,3.68262574,144.76,144.73,0.76543008]
[1768444226705,0.70535699,144.81,144.75,0.66543008]
[1768444227416,0.70535699,144.81,144.76,0.66543008]
[1768444228906,0.70535699,144.81,144.77,0.66543008]
[1768444230518,7.61106002,144.81,144.77,0.66543008]
[1768444230705,0.70535699,144.8,144.77,0.66543008]
[1768444231431,0.70535699,144.79,144.75,0.66543008]
[1768444231617,0.70535699,144.79,144.74,3.20414419]
[1768444231618,0.70535699,144.78,144.74,0.66543008]
[1768444236339,0.70535699,144.78,144.74,2.71511637]
[1768444236541,0.70535699,144.78,144.75,0.66543008]
[1768444243550,0.70535699,144.78,144.74,0.66543008]
[1768444246868,0.70535699,144.78,144.74,2.71511637]
[1768444247932,0.70535699,144.78,144.73,2.81511637]
[1768444250159,0.70535699,144.78,144.74,0.66543008]
[1768444252361,0.70535699,144.78,144.75,0.65530392]
[1768444252541,6.90658541,144.79,144.75,0.65530392]
[1768444252542,0.72295545,144.79,144.75,0.65530392]
[1768444257653,0.72295545,144.78,144.74,0.65530392]
[1768444260755,0.72295545,144.79,144.74,0.65530392]
[1768444262379,0.72295545,144.82,144.77,0.65530392]
[1768444262582,0.72295545,144.82,144.78,0.65530392]
[1768444264257,0.72295545,144.82,144.79,0.65530392]
[1768444264464,0.72295545,144.84,144.8,0.65530392]
[1768444264777,0.72295545,144.84,144.76,8.95736729]
[1768444264778,0.72295545,144.86,144.82,0.65530392]
[1768444264973,7.62633419,144.86,144.82,0.65530392]
[1768444265286,0.72295545,144.85,144.82,0.65530392]
[1768444266159,9.67557302,144.87,144.82,0.65530392]
[1768444266586,2.77264174,144.87,144.82,0.65530392]
[1768444266789,0.72295545,144.87,144.82,0.65530392]
[1768444267585,7.62570925,144.87,144.82,0.65530392]
[1768444267885,0.72295545,144.87,144.82,0.65530392]
[1768444268469,0.72295545,144.87,144.83,0.65530392]
[1768444270773,0.72295545,144.85,144.8,0.65530392]
[1768444270974,0.72295545,144.85,144.81,0.65530392]
[1768444271166,0.72295545,144.85,144.81,2.70499021]
[1768444271363,0.72295545,144.85,144.82,0.65530392]
[1768444272164,8.95263232,144.87,144.83,0.65530392]
[1768444272165,0.72295545,144.87,144.83,0.65530392]
[1768444273693,0.72295545,144.88,144.84,0.65530392]
[1768444274379,0.72295545,144.87,144.84,0.65530392]
[1768444274900,0.72295545,144.88,144.84,0.65530392]
[1768444275088,0.72295545,144.91,144.87,0.65530392]
[1768444275281,0.72295545,144.91,144.87,2.01968633]
[1768444275602,9.67348912,144.91,144.85,2.04968629]
[1768444276391,2.77264174,144.91,144.85,2.04968629]
[1768444277301,0.72295545,144.91,144.86,0.65530392]
[1768444277519,0.72295545,144.91,144.87,0.65530392]
[1768444278011,0.72295545,144.91,144.88,0.65530392]
[1768444278186,0.72295545,144.92,144.88,0.62530393]
[1768444279431,2.77264174,144.92,144.88,0.62530393]
[1768444279898,2.77264174,144.92,144.88,0.59530394]
[1768444280083,0.72295545,144.88,144.76,2.04968629]
[1768444280288,2.77264174,144.86,144.78,12.58]
[1768444280489,2.04968629,144.85,144.79,2.04968629]
[1768444280709,2.74984307,144.85,144.79,2.04968629]
[1768444281519,0.70015678,144.92,144.81,5.34408856]
[1768444281719,0.70015678,144.9,144.85,2.04968629]
[1768444281897,0.70015678,144.9,144.86,0.69579184]
[1768444282096,9.62491475,144.92,144.87,0.70555059]
[1768444282299,0.67486965,144.91,144.87,0.70555059]
[1768444282521,2.72455594,144.91,144.87,0.70555059]
[1768444282823,2.72455594,144.91,144.85,2.04968629]
[1768444282824,0.67486965,144.89,144.85,0.70555059]
[1768444283425,0.67486965,144.89,144.86,0.70555059]
[1768444283613,0.67486965,144.91,144.86,2.75523688]
[1768444285226,0.67486965,144.91,144.86,0.70555059]
[1768444285526,0.67486965,144.9,144.86,2.75523688]
[1768444285739,0.67486965,144.9,144.86,0.70555059]
[1768444286241,0.67486965,144.9,144.85,2.04968629]
[1768444286522,0.67486965,144.88,144.84,2.75523688]
[1768444287723,7.57721079,144.88,144.84,2.75523688]
[1768444288323,0.67486965,144.88,144.84,2.75523688]
[1768444288727,0.67486965,144.88,144.84,0.70555059]
[1768444288907,0.67486965,144.87,144.82,0.70555059]
[1768444289111,0.67486965,144.87,144.82,2.75523688]
[1768444289305,0.67486965,144.87,144.83,0.70555059]
[1768444289722,0.67486965,144.87,144.83,2.75523688]
[1768444290427,0.67486965,144.88,144.85,2.75523688]
[1768444292832,0.67486965,144.88,144.85,0.70555059]
[1768444293219,0.67486965,144.89,144.85,0.70555059]
[1768444293716,0.67486965,144.89,144.86,0.70555059]
[1768444294029,0.67486965,144.9,144.86,0.70555059]
[1768444294211,2.72455594,144.9,144.86,0.70555059]
[1768444294612,0.67486965,144.9,144.86,0.70555059]
[1768444298950,7.57618494,144.9,144.86,0.70555059]
[1768444300641,7.57618494,144.9,144.86,3.90311109]
[1768444300939,0.67486965,144.9,144.86,3.90311109]
[1768444304417,0.67486965,144.92,144.89,0.70555059]
[1768444306139,0.67486965,144.9,144.86,3.90311109]
[1768444306435,0.67486965,144.9,144.87,0.70555059]
[1768444307643,0.67486965,144.9,144.87,3.90311109]
[1768444310660,0.67486965,144.9,144.86,3.1975605]
[1768444310830,0.66903495,144.89,144.86,0.68283858]
[1768444311561,3.86659545,144.91,144.86,0.68283858]
[1768444311726,0.66903495,144.91,144.87,0.68283858]
[1768444313858,0.66903495,144.91,144.87,3.88039908]
[1768444314054,0.66903495,144.9,144.86,3.1975605]
[1768444314258,0.66903495,144.89,144.85,3.88039908]
[1768444314554,0.66903495,144.89,144.85,0.68283858]
[1768444314721,0.66903495,144.89,144.85,3.88039908]
[1768444315427,0.66903495,144.88,144.85,0.68283858]
[1768444315643,0.66903495,144.88,144.84,16.46039908]
[1768444315845,0.66903495,144.87,144.83,0.68283858]
[1768444316024,0.66903495,144.87,144.83,3.88039908]
[1768444316738,0.66903495,144.85,144.81,15.7775605]
[1768444316948,0.66903495,144.85,144.81,16.46039908]
[1768444317825,0.66903495,144.85,144.82,0.68283858]
[1768444318533,0.66903495,144.85,144.82,3.88039908]
[1768444318853,0.66903495,144.87,144.83,3.88039908]
[1768444320149,0.66903495,144.88,144.84,3.88039908]
[1768444320447,0.66903495,144.88,144.85,3.88039908]
[1768444320833,0.66903495,144.9,144.86,3.88039908]
[1768444321029,0.66903495,144.9,144.87,3.88039908]
[1768444321236,0.66903495,144.92,144.88,3.1975605]
[1768444322457,0.2,144.93,144.91,3.88039908]
[1768444322861,0.66903495,144.92,144.89,3.1975605]
[1768444323037,0.66903495,144.92,144.87,0.68283858]
[1768444323356,0.66903495,144.92,144.88,3.88039908]
[1768444323838,0.2,144.93,144.9,3.88039908]
[1768444324253,0.86903495,144.93,144.9,3.88039908]
[1768444325139,0.86903495,144.93,144.9,3.1975605]
[1768444326162,0.86903495,144.93,144.89,0.68283858]
[1768444326359,0.66903495,144.92,144.88,3.88039908]
[1768444328259,0.66903495,144.91,144.86,0.68283858]
[1768444328461,0.66903495,144.9,144.86,3.88039908]
[1768444329566,0.66903495,144.89,144.85,3.88039908]
[1768444329763,0.66903495,144.89,144.85,3.1975605]
[1768444329948,0.66903495,144.89,144.85,3.88039908]
[1768444330454,0.66903495,144.9,144.86,3.88039908]
[1768444330851,0.66903495,144.9,144.86,0.68283858]
[1768444331243,3.86659545,144.9,144.86,0.68283858]
[1768444331972,0.66903495,144.89,144.85,3.88039908]
[1768444332478,0.66903495,144.89,144.85,0.68283858]
[1768444332658,0.66903495,144.88,144.85,0.68283858]
[1768444332968,0.66903495,144.87,144.83,3.88039908]
[1768444333382,0.66903495,144.87,144.83,0.68283858]
[1768444333689,0.66903495,144.87,144.83,3.88039908]
[1768444334193,3.86659545,144.89,144.84,0.68283858]
[1768444334485,0.66903495,144.89,144.85,3.88039908]
[1768444335884,0.66903495,144.85,144.82,0.68283858]
[1768444336057,0.66903495,144.84,144.81,12.58]
[1768444337185,24.15647883,144.89,144.82,0.68283858]
[1768444337186,3.86659545,144.86,144.82,0.68283858]
[1768444338680,0.66903495,144.85,144.82,0.68283858]
[1768444340188,0.66903495,144.85,144.81,12.58]
[1768444340683,3.89318954,144.83,144.79,0.68924445]
[1768444340990,3.89318954,144.83,144.79,13.26924445]
[1768444341288,0.69562904,144.83,144.79,13.26924445]
[1768444341462,3.89318954,144.83,144.79,13.26924445]
[1768444343193,0.69562904,144.83,144.79,16.46680495]
[1768444344989,6.90385386,144.85,144.81,0.70188715]
[1768444344990,0.71098687,144.85,144.81,0.70188715]
[1768444345188,0.71098687,144.85,144.81,3.89944765]
[1768444348093,0.71098687,144.85,144.81,0.70188715]
[1768444353010,0.71098687,144.85,144.81,3.89944765]
[1768444353502,0.41098687,144.85,144.81,3.89944765]
[1768444353899,0.41098687,144.85,144.82,0.70188715]
[1768444354808,3.1975605,144.87,144.82,0.70188715]
[1768444355504,0.71098687,144.86,144.82,0.70188715]
[1768444356002,2.75856686,144.86,144.82,0.70188715]
[1768444360509,0.71098687,144.86,144.82,0.70188715]
[1768444360807,2.75856686,144.86,144.82,0.70188715]
[1768444361383,2.75856686,144.9,144.85,0.70188715]
[1768444361608,2.04757999,144.89,144.85,0.70188715]
[1768444361793,2.75856686,144.89,144.85,0.70188715]
[1768444362208,0.71098687,144.89,144.85,0.70188715]
[1768444362707,0.71098687,144.89,144.86,0.70188715]
[1768444363205,2.75856686,144.89,144.86,0.70188715]
[1768444363510,2.75856686,144.89,144.85,0.70188715]
[1768444364306,2.04757999,144.89,144.85,0.70188715]
[1768444364688,0.71098687,144.88,144.85,0.70188715]
[1768444364882,0.71098687,144.88,144.84,0.70188715]
[1768444365110,2.75856686,144.87,144.84,0.70188715]
[1768444365313,0.71098687,144.87,144.84,0.70188715]
[1768444365486,2.75856686,144.87,144.84,0.70188715]
[1768444365798,2.75856686,144.88,144.84,0.70188715]
[1768444366005,0.71098687,144.88,144.84,0.70188715]
[1768444366198,2.75856686,144.89,144.85,0.70188715]
[1768444366395,0.71098687,144.89,144.85,0.70188715]
[1768444366908,0.71098687,144.86,144.83,0.70188715]
[1768444367209,2.75856686,144.86,144.83,0.70188715]
[1768444370107,0.71098687,144.86,144.83,0.70188715]
[1768444370412,2.75856686,144.86,144.83,0.70188715]
[1768444370712,2.04757999,144.84,144.8,12.58]
[1768444370890,0.69216591,144.8,144.76,13.24733405]
[1768444371085,2.7397459,144.8,144.77,0.66733405]
[1768444371320,2.7397459,144.81,144.77,0.66733405]
[1768444372300,2.04757999,144.8,144.77,0.66733405]
[1768444372500,2.7397459,144.8,144.77,0.66733405]
[1768444372700,2.04757999,144.78,144.76,0.66733405]
[1768444372910,0.69216591,144.8,144.76,0.66733405]
[1768444372911,2.7397459,144.8,144.76,0.66733405]
[1768444373711,2.04757999,144.79,144.76,0.66733405]
[1768444376718,0.69216591,144.78,144.75,0.66733405]
[1768444376895,2.04757999,144.79,144.75,0.66733405]
[1768444377097,2.04757999,144.79,144.76,0.66733405]
[1768444378308,2.7397459,144.8,144.76,0.66733405]
[1768444379318,2.04757999,144.8,144.76,0.66733405]
[1768444379703,2.7397459,144.8,144.76,0.66733405]
[1768444380093,0.69216591,144.85,144.77,0.66733405]
[1768444380294,0.69216591,144.81,144.77,0.66733405]